[Event "*** SCC Grand Prix: Titled Tuesday Blitz"]
[Site "Chess.com"]
[Date "2020.09.29"]
[Round "2"]
[White "A-Fier"]
[Black "Loy_Konstantin"]
[Result "1-0"]
[WhiteElo "2847"]
[BlackElo "2351"]
[TimeControl "180+1"]
[EndTime "10:18:06 PDT"]
[Termination "A-Fier won on time"]

1. e4 {[%clk 0:03:00.9]} 1... c5 {[%clk 0:02:59.7]} 2. Nf3 {[%clk 0:03:00.8]}
2... d6 {[%clk 0:02:59.8]} 3. d4 {[%clk 0:03:01.5]} 3... cxd4 {[%clk 0:03:00.7]}
4. Nxd4 {[%clk 0:03:02.2]} 4... Nf6 {[%clk 0:03:01.2]} 5. Nc3 {[%clk 0:03:02.9]}
5... g6 {[%clk 0:03:01.3]} 6. Be3 {[%clk 0:03:02.9]} 6... Bg7 {[%clk 0:03:01.6]}
7. f3 {[%clk 0:03:03.4]} 7... O-O {[%clk 0:03:02.1]} 8. Qd2 {[%clk 0:03:03.5]}
8... Nc6 {[%clk 0:03:02.5]} 9. O-O-O {[%clk 0:03:04]} 9... Bd7 {[%clk
0:03:02.5]} 10. g4 {[%clk 0:02:59.9]} 10... Rc8 {[%clk 0:03:01.8]} 11. h4 {[%clk
0:03:00.3]} 11... Ne5 {[%clk 0:03:01.8]} 12. Be2 {[%clk 0:03:00.4]} 12... Qa5
{[%clk 0:02:50.8]} 13. Kb1 {[%clk 0:02:59.1]} 13... b5 {[%clk 0:02:48.5]} 14.
Nd5 {[%clk 0:02:23.5]} 14... Qxd2 {[%clk 0:02:46.2]} 15. Nxe7+ {[%clk
0:02:22.9]} 15... Kh8 {[%clk 0:02:46.6]} 16. Rxd2 {[%clk 0:02:22.4]} 16... Rce8
{[%clk 0:02:47.1]} 17. g5 {[%clk 0:02:22.1]} 17... Nxe4 {[%clk 0:02:38.4]} 18.
fxe4 {[%clk 0:02:21.2]} 18... Rxe7 {[%clk 0:02:38.3]} 19. Nxb5 {[%clk
0:02:15.1]} 19... Bxb5 {[%clk 0:02:32]} 20. Bxb5 {[%clk 0:02:14.4]} 20... Ng4
{[%clk 0:02:32.6]} 21. Bf4 {[%clk 0:02:04.7]} 21... Rxe4 {[%clk 0:02:32.1]} 22.
Bxd6 {[%clk 0:02:04.9]} 22... Rd8 {[%clk 0:02:25.1]} 23. c3 {[%clk 0:01:41.4]}
23... Kg8 {[%clk 0:01:41.9]} 24. Bf4 {[%clk 0:01:27.9]} 24... Rxd2 {[%clk
0:01:39]} 25. Bxd2 {[%clk 0:01:27.9]} 25... Ne5 {[%clk 0:01:31.8]} 26. Bc1
{[%clk 0:01:17.3]} 26... f6 {[%clk 0:01:19.1]} 27. gxf6 {[%clk 0:01:14.2]} 27...
Bxf6 {[%clk 0:01:20]} 28. h5 {[%clk 0:01:14]} 28... g5 {[%clk 0:01:17.4]} 29.
Rg1 {[%clk 0:01:10]} 29... h6 {[%clk 0:01:15.5]} 30. c4 {[%clk 0:01:10.1]} 30...
Nxc4 {[%clk 0:01:05.3]} 31. Bc6 {[%clk 0:01:10.1]} 31... Rd4 {[%clk 0:01:00.5]}
32. Rf1 {[%clk 0:01:08.6]} 32... Kg7 {[%clk 0:00:58.3]} 33. Re1 {[%clk
0:00:54.5]} 33... Ne5 {[%clk 0:00:45.2]} 34. Ba8 {[%clk 0:00:51.8]} 34... Nd3
{[%clk 0:00:43.2]} 35. Rf1 {[%clk 0:00:46.7]} 35... Nxc1 {[%clk 0:00:42.4]} 36.
Rxc1 {[%clk 0:00:47.6]} 36... Rd7 {[%clk 0:00:38.6]} 37. Bf3 {[%clk 0:00:45.7]}
37... Be5 {[%clk 0:00:34.9]} 38. a3 {[%clk 0:00:44.8]} 38... Kf6 {[%clk
0:00:33.4]} 39. Bg4 {[%clk 0:00:42.7]} 39... Rc7 {[%clk 0:00:32]} 40. Rf1+
{[%clk 0:00:41.8]} 40... Kg7 {[%clk 0:00:29.8]} 41. Re1 {[%clk 0:00:40.4]} 41...
Bf6 {[%clk 0:00:29.5]} 42. Be6 {[%clk 0:00:37.3]} 42... Re7 {[%clk 0:00:27.4]}
43. b4 {[%clk 0:00:37.2]} 43... Bc3 {[%clk 0:00:20.6]} 44. Re3 {[%clk
0:00:36.3]} 44... Kf6 {[%clk 0:00:18.3]} 45. Rxc3 {[%clk 0:00:36.4]} 45... Rxe6
{[%clk 0:00:18.4]} 46. Kc2 {[%clk 0:00:30.4]} 46... g4 {[%clk 0:00:18.7]} 47. b5
{[%clk 0:00:26.2]} 47... Kg5 {[%clk 0:00:17.5]} 48. Rc7 {[%clk 0:00:26.8]} 48...
a6 {[%clk 0:00:15.1]} 49. Rc6 {[%clk 0:00:23.6]} 49... Re5 {[%clk 0:00:11.8]}
50. b6 {[%clk 0:00:22.5]} 50... Rb5 {[%clk 0:00:09.7]} 51. a4 {[%clk 0:00:22.7]}
51... Rb4 {[%clk 0:00:09.8]} 52. a5 {[%clk 0:00:23.2]} 52... Kxh5 {[%clk
0:00:07.3]} 53. Rc3 {[%clk 0:00:23.8]} 53... Kh4 {[%clk 0:00:05.8]} 54. Rb3
{[%clk 0:00:24.2]} 54... Rxb3 {[%clk 0:00:04.1]} 55. Kxb3 {[%clk 0:00:23.8]}
55... g3 {[%clk 0:00:05]} 56. b7 {[%clk 0:00:24.4]} 56... g2 {[%clk 0:00:05.9]}
57. b8=Q {[%clk 0:00:25]} 57... g1=Q {[%clk 0:00:06.8]} 58. Qd8+ {[%clk
0:00:24.7]} 58... Qg5 {[%clk 0:00:06.2]} 59. Qb6 {[%clk 0:00:25.2]} 59... h5
{[%clk 0:00:03.9]} 60. Qxa6 {[%clk 0:00:25.1]} 60... Qg3+ {[%clk 0:00:04.1]} 61.
Kb4 {[%clk 0:00:25]} 61... Qf4+ {[%clk 0:00:04]} 62. Qc4 {[%clk 0:00:25.6]} 1-0

[Event "*** SCC Grand Prix: Titled Tuesday Blitz"]
[Site "Chess.com"]
[Date "2020.09.29"]
[Round "2"]
[White "boasovietica"]
[Black "pavelalexandru07"]
[Result "1-0"]
[WhiteElo "2438"]
[BlackElo "2247"]
[TimeControl "180+1"]
[EndTime "10:18:12 PDT"]
[Termination "boasovietica won by resignation"]

1. e4 {[%clk 0:03:00.9]} 1... c5 {[%clk 0:02:59.6]} 2. Nf3 {[%clk 0:02:59]} 2...
d6 {[%clk 0:02:59.8]} 3. d4 {[%clk 0:02:58.8]} 3... cxd4 {[%clk 0:03:00.4]} 4.
Nxd4 {[%clk 0:02:59.7]} 4... Nf6 {[%clk 0:03:00.9]} 5. Nc3 {[%clk 0:02:59.6]}
5... a6 {[%clk 0:03:01.3]} 6. Be3 {[%clk 0:02:59.3]} 6... e5 {[%clk 0:02:59.9]}
7. Nf3 {[%clk 0:02:59]} 7... h6 {[%clk 0:02:55.8]} 8. Nd2 {[%clk 0:02:58.6]}
8... Be6 {[%clk 0:02:52.3]} 9. Nc4 {[%clk 0:02:58.3]} 9... Bxc4 {[%clk
0:01:59.6]} 10. Bxc4 {[%clk 0:02:59.2]} 10... Be7 {[%clk 0:02:00.1]} 11. O-O
{[%clk 0:02:53.8]} 11... Nbd7 {[%clk 0:02:00]} 12. a4 {[%clk 0:02:49.6]} 12...
Rc8 {[%clk 0:01:59.8]} 13. Ba2 {[%clk 0:02:42.9]} 13... O-O {[%clk 0:01:59.5]}
14. Re1 {[%clk 0:02:40.9]} 14... Nc5 {[%clk 0:01:57.7]} 15. Qf3 {[%clk
0:02:37.5]} 15... Qc7 {[%clk 0:01:46]} 16. Rad1 {[%clk 0:02:26]} 16... Qc6
{[%clk 0:01:36.3]} 17. Bc1 {[%clk 0:02:07.3]} 17... Nxa4 {[%clk 0:01:27.1]} 18.
Bd5 {[%clk 0:01:29.8]} 18... Nxd5 {[%clk 0:01:25.2]} 19. Nxd5 {[%clk 0:01:29.9]}
19... Qd7 {[%clk 0:01:16]} 20. Qg3 {[%clk 0:01:20.3]} 20... Kh7 {[%clk
0:01:12.3]} 21. c3 {[%clk 0:01:08.9]} 21... Bd8 {[%clk 0:00:56]} 22. Ne3 {[%clk
0:01:07.9]} 22... g6 {[%clk 0:00:43.8]} 23. Ng4 {[%clk 0:01:07.6]} 23... h5
{[%clk 0:00:41.8]} 24. Nxe5 {[%clk 0:01:01.9]} 24... Qe6 {[%clk 0:00:35.9]} 25.
Nf3 {[%clk 0:01:00.6]} 25... Nc5 {[%clk 0:00:32.2]} 26. Bg5 {[%clk 0:00:52.6]}
26... Bc7 {[%clk 0:00:30.6]} 27. Bf4 {[%clk 0:00:43.4]} 27... Kg8 {[%clk
0:00:20.6]} 28. Bxd6 {[%clk 0:00:39.6]} 28... Bxd6 {[%clk 0:00:20.8]} 29. Rxd6
{[%clk 0:00:39.1]} 29... Nxe4 {[%clk 0:00:20.8]} 30. Rxe6 {[%clk 0:00:35.4]}
30... Nxg3 {[%clk 0:00:20.8]} 31. Re7 {[%clk 0:00:35.8]} 31... Nf5 {[%clk
0:00:20.3]} 32. Rxb7 {[%clk 0:00:34.8]} 32... Rb8 {[%clk 0:00:20.7]} 33. Rxb8
{[%clk 0:00:32.5]} 33... Rxb8 {[%clk 0:00:20.7]} 34. b4 {[%clk 0:00:32.9]} 34...
Nd6 {[%clk 0:00:19.8]} 35. Ra1 {[%clk 0:00:28.4]} 35... Ne4 {[%clk 0:00:15.4]}
36. Ra3 {[%clk 0:00:20.5]} 36... Rc8 {[%clk 0:00:13.4]} 37. h3 {[%clk
0:00:19.3]} 37... Nxc3 {[%clk 0:00:13.2]} 38. Rxa6 {[%clk 0:00:18.7]} 38... Rb8
{[%clk 0:00:11.8]} 39. Rc6 {[%clk 0:00:16.6]} 39... Nd5 {[%clk 0:00:10.5]} 40.
Rd6 {[%clk 0:00:16.2]} 40... Nxb4 {[%clk 0:00:10.6]} 41. Rd7 {[%clk 0:00:16.9]}
41... Nc6 {[%clk 0:00:08.1]} 42. Ng5 {[%clk 0:00:16.6]} 42... Rf8 {[%clk
0:00:08.6]} 43. f4 {[%clk 0:00:15.6]} 43... Nd8 {[%clk 0:00:03.8]} 44. Kf2
{[%clk 0:00:14.2]} 44... Ne6 {[%clk 0:00:03.5]} 45. Nxe6 {[%clk 0:00:13.8]}
45... fxe6 {[%clk 0:00:04.4]} 46. Ke3 {[%clk 0:00:14.3]} 46... Rf5 {[%clk
0:00:04.1]} 47. Ke4 {[%clk 0:00:11.7]} 47... Rf8 {[%clk 0:00:03.2]} 48. Re7
{[%clk 0:00:11.2]} 48... Rf6 {[%clk 0:00:03.1]} 49. g4 {[%clk 0:00:10.4]} 49...
hxg4 {[%clk 0:00:03.1]} 50. hxg4 {[%clk 0:00:10.9]} 50... Kf8 {[%clk 0:00:03.6]}
51. Ra7 {[%clk 0:00:10.4]} 51... Rf7 {[%clk 0:00:04.1]} 52. Rxf7+ {[%clk
0:00:07]} 52... Kxf7 {[%clk 0:00:05]} 53. Ke5 {[%clk 0:00:07.4]} 53... Ke7
{[%clk 0:00:05.7]} 54. g5 {[%clk 0:00:07.6]} 54... Kf7 {[%clk 0:00:03.4]} 55.
Kd6 {[%clk 0:00:07.6]} 55... Kf8 {[%clk 0:00:03.8]} 56. Kxe6 {[%clk 0:00:08.1]}
56... Kg7 {[%clk 0:00:04.3]} 57. Ke7 {[%clk 0:00:08.6]} 57... Kh7 {[%clk
0:00:04.9]} 58. Kf6 {[%clk 0:00:09]} 58... Kg8 {[%clk 0:00:05.7]} 59. Kxg6
{[%clk 0:00:09.7]} 59... Kf8 {[%clk 0:00:06.6]} 60. f5 {[%clk 0:00:10.4]} 60...
Ke8 {[%clk 0:00:07.5]} 1-0

[Event "*** SCC Grand Prix: Titled Tuesday Blitz"]
[Site "Chess.com"]
[Date "2020.09.29"]
[Round "2"]
[White "chessfrendz"]
[Black "Legendinunknown"]
[Result "1-0"]
[WhiteElo "2329"]
[BlackElo "2632"]
[TimeControl "180+1"]
[EndTime "10:18:13 PDT"]
[Termination "chessfrendz won by checkmate"]

1. d4 {[%clk 0:03:00.9]} 1... Nf6 {[%clk 0:02:58.9]} 2. Nf3 {[%clk 0:02:59.7]}
2... d5 {[%clk 0:02:56.9]} 3. e3 {[%clk 0:02:58.4]} 3... c5 {[%clk 0:02:54.2]}
4. c4 {[%clk 0:02:54.5]} 4... e6 {[%clk 0:02:52.3]} 5. cxd5 {[%clk 0:02:50.5]}
5... exd5 {[%clk 0:02:50]} 6. Nc3 {[%clk 0:02:45.9]} 6... Nc6 {[%clk 0:02:49.3]}
7. Be2 {[%clk 0:02:33]} 7... Bg4 {[%clk 0:02:41]} 8. O-O {[%clk 0:02:31.5]} 8...
Be7 {[%clk 0:02:34.9]} 9. dxc5 {[%clk 0:02:30.4]} 9... Bxc5 {[%clk 0:02:35.8]}
10. Nd4 {[%clk 0:02:26]} 10... Bxe2 {[%clk 0:02:28.5]} 11. Ncxe2 {[%clk
0:02:18.6]} 11... O-O {[%clk 0:02:27.6]} 12. b3 {[%clk 0:02:13.8]} 12... Ne4
{[%clk 0:02:26.6]} 13. Bb2 {[%clk 0:02:13.2]} 13... Rc8 {[%clk 0:02:17.1]} 14.
Rc1 {[%clk 0:02:11.8]} 14... Bd6 {[%clk 0:01:48.3]} 15. Nf5 {[%clk 0:01:58.6]}
15... Be5 {[%clk 0:01:46]} 16. Bxe5 {[%clk 0:01:53.8]} 16... Qg5 {[%clk
0:01:40.2]} 17. Bxg7 {[%clk 0:00:54.1]} 17... Rfd8 {[%clk 0:01:19.7]} 18. Ned4
{[%clk 0:00:26.5]} 18... Nxd4 {[%clk 0:01:17.2]} 19. Rxc8 {[%clk 0:00:24.3]}
19... Rxc8 {[%clk 0:01:04.7]} 20. Bxd4 {[%clk 0:00:20.7]} 20... Qxf5 {[%clk
0:01:03.4]} 21. Bxa7 {[%clk 0:00:18.1]} 21... Ra8 {[%clk 0:00:56]} 22. Qd4
{[%clk 0:00:17.2]} 22... Nd6 {[%clk 0:00:53.8]} 23. Bc5 {[%clk 0:00:16.3]} 23...
Ne4 {[%clk 0:00:49.8]} 24. Bb4 {[%clk 0:00:15.4]} 24... Rxa2 {[%clk 0:00:45.9]}
25. Qb6 {[%clk 0:00:14.5]} 25... Rxf2 {[%clk 0:00:24.1]} 26. Qd8+ {[%clk
0:00:13.6]} 26... Kg7 {[%clk 0:00:23.6]} 27. Qf8+ {[%clk 0:00:13.5]} 27... Kg6
{[%clk 0:00:21.5]} 28. Qg8+ {[%clk 0:00:13.4]} 28... Kh5 {[%clk 0:00:20.5]} 29.
g4+ {[%clk 0:00:11.5]} 29... Qxg4+ {[%clk 0:00:19.5]} 30. Qxg4+ {[%clk
0:00:11.9]} 30... Kxg4 {[%clk 0:00:20.4]} 31. Rxf2 {[%clk 0:00:12.4]} 31... Nxf2
{[%clk 0:00:21.3]} 32. Kxf2 {[%clk 0:00:13.1]} 32... Kf5 {[%clk 0:00:21.4]} 33.
Bd6 {[%clk 0:00:12.9]} 33... Ke4 {[%clk 0:00:20.7]} 34. Bc5 {[%clk 0:00:12.4]}
34... f5 {[%clk 0:00:18.8]} 35. Kg3 {[%clk 0:00:12.5]} 35... Kd3 {[%clk
0:00:19]} 36. Kf4 {[%clk 0:00:11.5]} 36... Kc3 {[%clk 0:00:19.2]} 37. Kxf5
{[%clk 0:00:10.9]} 37... Kxb3 {[%clk 0:00:19.1]} 38. Ke5 {[%clk 0:00:10.5]}
38... Kc4 {[%clk 0:00:20]} 39. Bd4 {[%clk 0:00:10.5]} 39... b5 {[%clk
0:00:20.4]} 40. h4 {[%clk 0:00:09.8]} 40... b4 {[%clk 0:00:20.6]} 41. h5 {[%clk
0:00:09.7]} 41... b3 {[%clk 0:00:21.1]} 42. h6 {[%clk 0:00:10.5]} 42... Kd3
{[%clk 0:00:20.6]} 43. Kxd5 {[%clk 0:00:09.8]} 43... b2 {[%clk 0:00:21.2]} 44.
Bxb2 {[%clk 0:00:09.5]} 44... Kxe3 {[%clk 0:00:22.1]} 45. Ke5 {[%clk 0:00:09.6]}
45... Kd3 {[%clk 0:00:19]} 46. Kf5 {[%clk 0:00:09.6]} 46... Kc4 {[%clk
0:00:19.9]} 47. Kf6 {[%clk 0:00:09]} 47... Kd5 {[%clk 0:00:20.8]} 48. Kg7 {[%clk
0:00:09]} 48... Ke6 {[%clk 0:00:21.4]} 49. Kxh7 {[%clk 0:00:09]} 49... Kf7
{[%clk 0:00:22.3]} 50. Bc3 {[%clk 0:00:08.5]} 50... Ke6 {[%clk 0:00:23.2]} 51.
Kg7 {[%clk 0:00:08.2]} 51... Kd5 {[%clk 0:00:24.1]} 52. h7 {[%clk 0:00:08.4]}
52... Kc4 {[%clk 0:00:25]} 53. Ba1 {[%clk 0:00:08.5]} 53... Kb3 {[%clk
0:00:24.8]} 54. h8=Q {[%clk 0:00:08]} 54... Ka2 {[%clk 0:00:25.7]} 55. Qa8+
{[%clk 0:00:07.3]} 55... Kb3 {[%clk 0:00:26.6]} 56. Qc6 {[%clk 0:00:06]} 56...
Kb4 {[%clk 0:00:26.6]} 57. Bc3+ {[%clk 0:00:05.4]} 57... Kb3 {[%clk 0:00:27.5]}
58. Bd4 {[%clk 0:00:05.4]} 58... Kb4 {[%clk 0:00:27.8]} 59. Kf6 {[%clk
0:00:04.2]} 59... Kb3 {[%clk 0:00:28.7]} 60. Qc3+ {[%clk 0:00:03.8]} 60... Ka4
{[%clk 0:00:28]} 61. Qb2 {[%clk 0:00:03.4]} 61... Ka5 {[%clk 0:00:27.9]} 62. Bc5
{[%clk 0:00:02.3]} 62... Ka4 {[%clk 0:00:28.8]} 63. Qb4# {[%clk 0:00:02.2]} 1-0

[Event "*** SCC Grand Prix: Titled Tuesday Blitz"]
[Site "Chess.com"]
[Date "2020.09.29"]
[Round "2"]
[White "stefy02"]
[Black "Shuvalov"]
[Result "1/2-1/2"]
[WhiteElo "2243"]
[BlackElo "2421"]
[TimeControl "180+1"]
[EndTime "10:18:13 PDT"]
[Termination "Game drawn by repetition"]

1. e4 {[%clk 0:03:00.9]} 1... e6 {[%clk 0:02:56]} 2. d4 {[%clk 0:03:00]} 2... d5
{[%clk 0:02:56.1]} 3. Nd2 {[%clk 0:02:57.4]} 3... c5 {[%clk 0:02:53.8]} 4. exd5
{[%clk 0:02:56.7]} 4... exd5 {[%clk 0:02:54.7]} 5. Bb5+ {[%clk 0:02:49.6]} 5...
Nc6 {[%clk 0:02:54]} 6. Ngf3 {[%clk 0:02:49.6]} 6... Bd6 {[%clk 0:02:53.3]} 7.
dxc5 {[%clk 0:02:44.8]} 7... Bxc5 {[%clk 0:02:54.2]} 8. O-O {[%clk 0:02:44.8]}
8... Ne7 {[%clk 0:02:54.4]} 9. Nb3 {[%clk 0:02:44.9]} 9... Bb6 {[%clk
0:02:53.6]} 10. Bg5 {[%clk 0:02:32.1]} 10... O-O {[%clk 0:02:52.2]} 11. Re1
{[%clk 0:02:23.1]} 11... f6 {[%clk 0:01:59.6]} 12. Bf4 {[%clk 0:02:14.5]} 12...
Nf5 {[%clk 0:01:51.5]} 13. a4 {[%clk 0:01:57.9]} 13... a6 {[%clk 0:01:48.9]} 14.
Bd3 {[%clk 0:01:53.6]} 14... Nd6 {[%clk 0:01:40.2]} 15. c3 {[%clk 0:01:35.6]}
15... Bg4 {[%clk 0:01:10.8]} 16. Bc2 {[%clk 0:01:22.2]} 16... Nc4 {[%clk
0:00:57.8]} 17. Qd3 {[%clk 0:01:13.5]} 17... g6 {[%clk 0:00:57.6]} 18. Nh4
{[%clk 0:00:49]} 18... Nxb2 {[%clk 0:00:39.1]} 19. Qg3 {[%clk 0:00:48.8]} 19...
Qd7 {[%clk 0:00:38.3]} 20. h3 {[%clk 0:00:44.1]} 20... Bh5 {[%clk 0:00:36.9]}
21. Nf5 {[%clk 0:00:35]} 21... Rfe8 {[%clk 0:00:30.7]} 22. Nh6+ {[%clk
0:00:24.9]} 22... Kg7 {[%clk 0:00:28.3]} 23. Bf5 {[%clk 0:00:19.4]} 23... Qd8
{[%clk 0:00:20.9]} 24. Be6 {[%clk 0:00:19.3]} 24... Re7 {[%clk 0:00:18.2]} 25.
Nf5+ {[%clk 0:00:19.1]} 25... Kh8 {[%clk 0:00:17]} 26. Nxe7 {[%clk 0:00:19.4]}
26... Qxe7 {[%clk 0:00:17.8]} 27. Bg4 {[%clk 0:00:18.4]} 27... Qg7 {[%clk
0:00:16.5]} 28. Bxh5 {[%clk 0:00:18.4]} 28... gxh5 {[%clk 0:00:17.4]} 29. Qh4
{[%clk 0:00:18]} 29... Nd3 {[%clk 0:00:16.2]} 30. Re2 {[%clk 0:00:17.1]} 30...
Rg8 {[%clk 0:00:15.1]} 31. Bg3 {[%clk 0:00:15.8]} 31... Nce5 {[%clk 0:00:14.7]}
32. Nd4 {[%clk 0:00:13.5]} 32... Bxd4 {[%clk 0:00:11.6]} 33. cxd4 {[%clk
0:00:13.2]} 33... Ng6 {[%clk 0:00:12.1]} 34. Qxh5 {[%clk 0:00:12.1]} 34... Ngf4
{[%clk 0:00:12.3]} 35. Qf3 {[%clk 0:00:11.8]} 35... Nxe2+ {[%clk 0:00:12.1]} 36.
Qxe2 {[%clk 0:00:11.9]} 36... Nf4 {[%clk 0:00:11.6]} 37. Qf3 {[%clk 0:00:11.5]}
37... Ng6 {[%clk 0:00:11.6]} 38. Re1 {[%clk 0:00:10.7]} 38... Qf7 {[%clk
0:00:11.4]} 39. Qe3 {[%clk 0:00:09.1]} 39... Kg7 {[%clk 0:00:10.6]} 40. Qe6
{[%clk 0:00:08.8]} 40... Qxe6 {[%clk 0:00:10.2]} 41. Rxe6 {[%clk 0:00:09.2]}
41... Rc8 {[%clk 0:00:10.9]} 42. Rb6 {[%clk 0:00:09]} 42... Rc1+ {[%clk
0:00:09.5]} 43. Kh2 {[%clk 0:00:09.2]} 43... Rc4 {[%clk 0:00:10.4]} 44. Rxb7+
{[%clk 0:00:09.3]} 44... Kg8 {[%clk 0:00:09.9]} 45. a5 {[%clk 0:00:06.9]} 45...
Rxd4 {[%clk 0:00:10]} 46. Rb6 {[%clk 0:00:07]} 46... Ra4 {[%clk 0:00:09.5]} 47.
Rxa6 {[%clk 0:00:07.3]} 47... Kf7 {[%clk 0:00:09.4]} 48. Ra7+ {[%clk 0:00:07.4]}
48... Ke6 {[%clk 0:00:09.3]} 49. a6 {[%clk 0:00:07.7]} 49... d4 {[%clk
0:00:09.3]} 50. Ra8 {[%clk 0:00:05.2]} 50... Ne7 {[%clk 0:00:07.9]} 51. a7
{[%clk 0:00:03.9]} 51... d3 {[%clk 0:00:07.8]} 52. Rd8 {[%clk 0:00:03.6]} 52...
Rxa7 {[%clk 0:00:07.2]} 53. Rxd3 {[%clk 0:00:03.6]} 53... Kf7 {[%clk 0:00:06.7]}
54. Re3 {[%clk 0:00:03.4]} 54... Nf5 {[%clk 0:00:06.7]} 55. Rf3 {[%clk
0:00:03.5]} 55... Nxg3 {[%clk 0:00:06.4]} 56. Kxg3 {[%clk 0:00:04]} 56... Kg6
{[%clk 0:00:06.7]} 57. Re3 {[%clk 0:00:04.5]} 57... Ra5 {[%clk 0:00:06.5]} 58.
Kf3 {[%clk 0:00:04.9]} 58... Ra4 {[%clk 0:00:06.5]} 59. Kg3 {[%clk 0:00:05.3]}
59... Ra5 {[%clk 0:00:06.8]} 60. Kf3 {[%clk 0:00:05.9]} 60... Ra4 {[%clk
0:00:07.2]} 61. Kg3 {[%clk 0:00:06.8]} 61... Ra5 {[%clk 0:00:07.5]} 1/2-1/2